Workbook

Sheet Number
B2: Level 2 Programme 1 Revision Created by Mr.Lafferty@mathsrevision.com
B8: ="Q1. Change these percentage to decimals then to fractions in their simplest form." -> Q1. Change these percentage to decimals then to fractions in their simplest form. | AZ8: %
D10: ="(a) "&AZ10&AZ8 -> (a) 10% | I10: Decimal = | W10: ="(b) "&AZ11&AZ8 -> (b) 75% | AB10: Decimal = | AZ10: =ROUND(RAND()*(10-1)+1,0)*5 -> 10 | BA10: =AZ10/100 -> 0.1 | BB10: =GCD(AZ10,100) -> 10 | BC10: =AZ10/BB10 -> 1 | BD10: =100/BB10 -> 10
AZ11: =ROUND(RAND()*(19-11)+11,0)*5 -> 75 | BA11: =AZ11/100 -> 0.75 | BB11: =GCD(AZ11,100) -> 25 | BC11: =AZ11/BB11 -> 3 | BD11: =100/BB11 -> 4
I13: Fraction = | AB13: Fraction =
AZ21: %
B22: ="Q2. Find :-" -> Q2. Find :-
AZ23: =ROUND(RAND()*(3-1)+1,0)*25 -> 50 | BA23: =ROUND(RAND()*(20-1)+1,0)*12 -> 156 | BB23: =AZ23/100*BA23 -> 78
D24: ="(a) "&AZ23&AZ21&" of £"&BA23&"." -> (a) 50% of £156. | L24: £ | W24: ="(b) "&AZ24&AZ21&" of "&BA24&"g." -> (b) 90% of 20g. | AI24: g | AZ24: =ROUND(RAND()*(9-1)+1,0)*10 -> 90 | BA24: =ROUND(RAND()*(20-1)+1,0)*10 -> 20 | BB24: =AZ24/100*BA24 -> 18
B29: ="Q3. Find the missing numbers in the number machine." -> Q3. Find the missing numbers in the number machine. | AZ29: =ROUND(RAND()*(9-3)+3,0) -> 7 | BA29: ÷
AZ30: =ROUND(RAND()*(9-3)+3,0) -> 7 | BA30: =AZ29*AZ30 -> 49 | BB30: =CONCATENATE(BA29," ",AZ30) -> ÷ 7
D31: (a) | H31: =BA30 -> 49 | M31: =BB30 -> ÷ 7 | S31: =BB31 -> - 3 | AZ31: =ROUND(RAND()*(4-2)+2,0) -> 3 | BA31: =AZ29-AZ31 -> 4 | BB31: =CONCATENATE("-"," ",AZ31) -> - 3
AZ35: =ROUND(RAND()*(9-3)+3,0) -> 8 | BA35: ÷
D36: (b) | M36: =BB36 -> x 4 | S36: =BB37 -> + 3 | X36: =BA37 -> 35 | AZ36: =ROUND(RAND()*(9-3)+3,0) -> 4 | BA36: =AZ35*AZ36 -> 32 | BB36: =CONCATENATE("x"," ",AZ36) -> x 4
AZ37: =ROUND(RAND()*(4-2)+2,0) -> 3 | BA37: =BA36+AZ37 -> 35 | BB37: =CONCATENATE("+"," ",AZ37) -> + 3
AZ40: =ROUND(RAND()*(100-97)+97,0) -> 99 | BA40: =ROUND(RAND()*(30-5)+5,0) -> 7
B41: ="Q4. Solve the equations below :-" -> Q4. Solve the equations below :- | AZ41: =CHAR(AZ40) -> c | BA41: =ROUND(RAND()*(20-7)+7,0) -> 18 | BB41: =BA40+BA41 -> 25
D43: ="(a) "&AZ41&" + "&BA41&" = "&BB41 -> (a) c + 18 = 25 | M43: =AZ41&" = " -> c = | W43: ="(b) "&BA43&AZ44&" = "&BB44 -> (b) 5g = 50 | AE43: =AZ44&" = " -> g = | AZ43: =ROUND(RAND()*(103-101)+101,0) -> 103 | BA43: =ROUND(RAND()*(10-2)+2,0) -> 5
AZ44: =CHAR(AZ43) -> g | BA44: =ROUND(RAND()*(20-7)+7,0) -> 10 | BB44: =BA43*BA44 -> 50
AZ46: =ROUND(RAND()*(119-117)+117,0) -> 118 | BA46: =ROUND(RAND()*(30-10)+10,0) -> 14 | BF46: =ROUND(RAND()*(122-120)+120,0) -> 121 | BG46: =ROUND(RAND()*(30-10)+10,0) -> 12
D47: ="(c) "&AZ47&" - "&BA47&" = "&BB47 -> (c) v - 8 = 6 | M47: =AZ47&" = " -> v = | W47: ="(d) "&BF47&" - "&BG47&" > "&BH47 -> (d) y - 4 > 8 | AF47: =BF47&" > " -> y > | AZ47: =CHAR(AZ46) -> v | BA47: =ROUND(RAND()*(9-3)+3,0) -> 8 | BB47: =BA46-BA47 -> 6 | BF47: =CHAR(BF46) -> y | BG47: =ROUND(RAND()*(9-3)+3,0) -> 4 | BH47: =BG46-BG47 -> 8
AZ52: =ROUND(RAND()*((-2)-(-20))+(-20),0) -> -9 | BA52: =ROUND(RAND()*((-2)-(-20))+(-20),0) -> -6 | BB52: =AZ52+BA52 -> -15
B53: ="Q5. Calculate the following :-" -> Q5. Calculate the following :- | AZ53: =ROUND(RAND()*(10-4)+4,0) -> 5 | BA53: =ROUND(RAND()*(30-10)+10,0) -> 15 | BB53: =AZ53-BA53 -> -10
D55: ="(a) ( "&AZ52&") + ("&BA52&") = " -> (a) ( -9) + (-6) = | W55: ="(b) "&AZ53&" - "&BA53&" = " -> (b) 5 - 15 =

Sheet Shape
B2: Level 2 Programme 1 Revision Created by Mr.Lafferty@mathsrevision.com
B8: Q1. | D8: Fill in the missing words ( be careful with your spelling )
AZ10: length
AZ11: breadth
AZ12: height
C16: (b) Fill in the missing letters in the formula.
F18: V | G18: = | I18: x | K18: x | AZ18: l
AZ19: b
AZ20: h
B23: Q2. | D23: Find the volume of the cuboid opposite:
Y24: =ROUND(RAND()*(4-2)+2,0) -> 3 | AA24: cm
AN25: =ROUND(RAND()*(6-3)+3,0) -> 5 | AP25: cm
W26: cm3 | AG26: =Y24+ROUND(RAND()*(8-5)+5,0) -> 10 | AH26: cm | AZ26: =Y24*AG26*AN25 -> 150
B30: ="Q3. Find the area and perimeter of the rectangle." -> Q3. Find the area and perimeter of the rectangle.
AF32: Area = | AK32: m2 | AZ32: =Q40*Y41 -> 154
AD35: Perimeter = | AK35: m | AZ35: =2*(Q40+Y41) -> 58
Q40: =ROUND(RAND()*(30-10)+10,0) -> 22 | S40: m
Y41: =ROUND(Q40/3,0) -> 7 | AA41: m
B45: ="Q4. Find the area and perimeter of the triangle." -> Q4. Find the area and perimeter of the triangle.
AG46: Perimeter = | AN46: mm | AZ46: =W54+S49+AC49 -> 130
S49: =W54-ROUND(RAND()*(3-1)+1,0) -> 44 | U49: mm | AC49: =S49-ROUND(RAND()*(7-2)+2,0) -> 39 | AE49: mm
W54: =ROUND(RAND()*(50-20)+20,0) -> 47 | Y54: mm

Sheet Shape_2
B2: Level 2 Programme 1 Revision Created by Mr.Lafferty@mathsrevision.com
AZ7: =ROUND(RAND()*(70-50)+50,0) -> 64 | BA7: =AZ7&AZ10 -> 64°
B8: ="Q1. Find the missing angles." -> Q1. Find the missing angles. | AZ8: =ROUND(RAND()*(160-140)+140,0) -> 141 | BA8: =AZ8&AZ10 -> 141°
C10: (a) | U10: (b) | AZ10: °
AJ11: yo = | AN11: =AZ10 -> ° | AZ11: =90-AZ7 -> 26
AZ12: =180-AZ8 -> 39
N13: xo = | R13: =AZ10 -> ° | AC13: yo | AG13: =BA8 -> 141°
H15: xo
I16: =BA7 -> 64°
AZ21: =ROUND(RAND()*(160-130)+130,0) -> 154 | BA21: =AZ21&AZ10 -> 154°
B22: ="Q2. Find the missing angles." -> Q2. Find the missing angles. | AZ22: =ROUND(RAND()*(102-97)+97,0) -> 100
AZ23: =CHAR(AZ22) -> d | BA23: =AZ23&AZ10 -> d°
AZ24: =CHAR(AZ22+1) -> e | BA24: =AZ24&AZ10 -> e°
AZ25: =CHAR(AZ22+2) -> f | BA25: =AZ25&AZ10 -> f°
I26: =BA21 -> 154° | S26: =BA23&" =" -> d° = | W26: =AZ10 -> ° | Z26: =BA24&" =" -> e° = | AD26: =AZ10 -> ° | AG26: =BA25&" =" -> f° = | AK26: =AZ10 -> ° | AZ26: =180-AZ21 -> 26
G27: =BA23 -> d° | K27: =BA25 -> f° | AZ27: =AZ21 -> 154
I28: =BA24 -> e° | AZ28: =AZ26 -> 26
B33: ="Q3. Find the missing angle in the triangle." -> Q3. Find the missing angle in the triangle. | AY33: =ROUND(RAND()*(3-1)+1,0) -> 2 | AZ33: =ROUND(RAND()*(50-30)+30,0) -> 33 | BA33: a
AZ34: =AZ33+30 -> 63 | BA34: b
X35: =BA38 -> 84° | AZ35: =180-AZ33-AZ34 -> 84 | BA35: c
AE36: =AZ39&" =" -> b° = | AI36: =AZ10 -> ° | AZ36: =IF(AY33=1,BA33,AZ33) -> 33 | BA36: =AZ36&AZ10 -> 33°
AZ37: =IF(AY33=2,BA34,AZ34) -> b | BA37: =AZ37&AZ10 -> b°
AZ38: =IF(AY33=3,BA35,AZ35) -> 84 | BA38: =AZ38&AZ10 -> 84°
AZ39: =IF(AY33=1,BA36,IF(AY33=2,BA37,BA38)) -> b°
Q40: =BA36 -> 33° | Z40: =BA37 -> b° | AZ40: =IF(AY33=1,AZ33,IF(AY33=2,AZ34,AZ35)) -> 63
AY43: =ROUND(RAND()*(4-1)+1,0) -> 1 | AZ43: =ROUND(RAND()*(80-65)+65,0)*2 -> 132 | BA43: w
B44: ="Q4. Find all the missing angles." -> Q4. Find all the missing angles. | AZ44: =180-AZ43 -> 48 | BA44: x
Z45: =BA43&AZ10&" =" -> w° = | AE45: =AZ10 -> ° | AZ45: =AZ44 -> 48 | BA45: y
G46: =BA49 -> y° | L46: =BA48 -> x° | O46: =BA47 -> w = 132° | AZ46: =180-AZ44-AZ45 -> 84 | BA46: z
Z47: =BA44&AZ10&" =" -> x° = | AE47: =AE45 -> ° | AZ47: =IF(AY43=1,AZ43,BA43) -> 132 | BA47: =IF(AY43=1,"w = "&AZ47&AZ10,AZ47&AZ10) -> w = 132°
I48: =BA50 -> z° | AZ48: =IF(AY43=2,AZ44,BA44) -> x | BA48: =IF(AY43=2,"x = "&AZ48&AZ10,AZ48&AZ10) -> x°
Z49: =BA45&AZ10&" =" -> y° = | AE49: =AE47 -> ° | AZ49: =IF(AY43=3,AZ45,BA45) -> y | BA49: =IF(AY43=3,"y = "&AZ49&AZ10,AZ49&AZ10) -> y°
AZ50: =IF(AY43=4,AZ46,BA46) -> z | BA50: =IF(AY43=4,"z = "&AZ50&AZ10,AZ50&AZ10) -> z°
Z51: =BA46&AZ10&" =" -> z° = | AE51: =AE49 -> °
B54: Q5. For the angle below write down the TYPE and NAME of the angle.
K56: =UPPER(CHAR(ROUND(RAND()*(102-97)+97,0))) -> C | U56: =UPPER(CHAR(ROUND(RAND()*(106-103)+103,0))) -> H | Y56: Type =
AZ57: =ROUND(RAND()*(3-1)+1,0) -> 2 | BA57: 1 | BB57: x° | BC57: acute | BD57: =K56 -> C | BE57: =P59 -> R | BF57: =U56 -> H
N58: =IF(AZ57=3,BB59,"") ->  | P58: =IF(AZ57=1,BB57,"") ->  | R58: =IF(AZ57=2,BB58,"") -> y° | Y58: Name | AA58: Ð | AF58: (order left to right or top to bottom) | BA58: 2 | BB58: y° | BC58: obtuse | BD58: =U56 -> H | BE58: =P59 -> R | BF58: =U61 -> L
P59: =UPPER(CHAR(ROUND(RAND()*(115-113)+113,0))) -> R | BA59: 3 | BB59: z° | BC59: acute | BD59: =K56 -> C | BE59: =P59 -> R | BF59: =K61 -> O
BB60: =LOOKUP($AZ$57,BA57:BA59,BB57:BB59) -> y° | BC60: =LOOKUP($AZ$57,BA57:BA59,BC57:BC59) -> obtuse | BD60: =LOOKUP($AZ$57,BA57:BA59,BD57:BD59) -> H | BE60: =LOOKUP($AZ$57,BA57:BA59,BE57:BE59) -> R | BF60: =LOOKUP($AZ$57,BA57:BA59,BF57:BF59) -> L
K61: =UPPER(CHAR(ROUND(RAND()*(112-110)+110,0))) -> O | U61: =UPPER(CHAR(ROUND(RAND()*(109-107)+107,0))) -> L
BA64: =ROUND(RAND()*(7-1)+1,0) -> 6 | BB64: 1 | BC64: 45 | BD64: North East | BK64: =ROUND(RAND()*(7-1)+1,0) -> 2 | BL64: 1 | BM64: 45 | BN64: North East
B65: ="Q6. (a) If Logan is walking on a bearing of "&BC71&BA71&". What direction is he travelling in." -> Q6. (a) If Logan is walking on a bearing of 270°. What direction is he travelling in. | BB65: 2 | BC65: 90 | BD65: East | BL65: 2 | BM65: 90 | BN65: East
BB66: 3 | BC66: 135 | BD66: South East | BL66: 3 | BM66: 135 | BN66: South East
BB67: 4 | BC67: 180 | BD67: South | BL67: 4 | BM67: 180 | BN67: South
D68: ="(b) If Kieran is travelling "&BN71&" . What bearing is he travelling on." -> (b) If Kieran is travelling East . What bearing is he travelling on. | AF68: =BA71 -> ° | BB68: 5 | BC68: 225 | BD68: South West | BL68: 5 | BM68: 225 | BN68: South West
BB69: 6 | BC69: 270 | BD69: West | BL69: 6 | BM69: 270 | BN69: West
BB70: 7 | BC70: 315 | BD70: North West | BL70: 7 | BM70: 315 | BN70: North West
BA71: ° | BC71: =LOOKUP($BA$64,BB64:BB70,BC64:BC70) -> 270 | BD71: =LOOKUP($BA$64,BB64:BB70,BD64:BD70) -> West | BK71: ° | BM71: =LOOKUP($BK$64,BL64:BL70,BM64:BM70) -> 90 | BN71: =LOOKUP($BK$64,BL64:BL70,BN64:BN70) -> East

Sheet Measure
B2: Level 2 Programme 1 Revision Created by Mr.Lafferty@mathsrevision.com
AV7: =ROUND(RAND()*(10-2)+2,1) -> 4.7
B8: ="Q1. Convert the following to the units given :-" -> Q1. Convert the following to the units given :- | AV8: =AV7*100 -> 470
AV9: =ROUND(RAND()*(1500-220)+220,0) -> 1129
D10: ="(a) "&AV7&" metres to centimetres" -> (a) 4.7 metres to centimetres | R10: cm | Z10: ="(b) "&AV9&" centimetres to metres" -> (b) 1129 centimetres to metres | AN10: m | AV10: =AV9/100 -> 11.29
AV11: =ROUND(RAND()*(30-12)+12,1) -> 20.4
D12: ="(c) "&AV11&" centimetres to millimetres" -> (c) 20.4 centimetres to millimetres | R12: mm | Z12: ="(d) "&AV13&" millimetres to centimetres" -> (d) 77 millimetres to centimetres | AN12: cm | AV12: =AV11*10 -> 204
AV13: =ROUND(RAND()*(90-12)+12,0) -> 77 | AW13: =ROUND(RAND()*(90-12)+12,1) -> 72.7 | AX13: =ROUND(RAND()*(99000-11000)+11000,-2) -> 25800
D14: ="(e) "&AW13&" kilometres to metres" -> (e) 72.7 kilometres to metres | R14: m | Z14: ="(f) "&AX13&" metres to kilometres" -> (f) 25800 metres to kilometres | AN14: km | AV14: =AV13/10 -> 7.7 | AW14: =AW13*1000 -> 72700 | AX14: =AX13/1000 -> 25.8
AV16: =ROUND(RAND()*(10-2)+2,1) -> 8.5
B17: ="Q2. Convert the following to the units given :-" -> Q2. Convert the following to the units given :- | AV17: =AV16*1000 -> 8500
AV18: =ROUND(RAND()*(1500-220)+220,-2) -> 400
D19: ="(a) "&AV16&" litres to millilitres" -> (a) 8.5 litres to millilitres | R19: ml | Z19: ="(b) "&AV18&" millilitres to litres" -> (b) 400 millilitres to litres | AN19: l | AV19: =AV18/1000 -> 0.4
AV20: =ROUND(RAND()*(50-2)+20,1) -> 45.8
D21: ="(c) "&AV20&" litres to millilitres" -> (c) 45.8 litres to millilitres | R21: ml | Z21: ="(d) "&AV22&" millilitres to litres" -> (d) 5300 millilitres to litres | AN21: l | AV21: =AV20*1000 -> 45800
AV22: =ROUND(RAND()*(15000-2200)+2200,-2) -> 5300
AV23: =AV22/1000 -> 5.3
AV24: =ROUND(RAND()*(10-2)+2,1) -> 4.3
B25: ="Q32. Convert the following to the units given :-" -> Q32. Convert the following to the units given :- | AV25: =AV24*1000 -> 4300
AV26: =ROUND(RAND()*(1500-220)+220,-2) -> 600
D27: ="(a) "&AV24&" kilograms to grams" -> (a) 4.3 kilograms to grams | R27: g | Z27: ="(b) "&AV26&" grams to kilograms" -> (b) 600 grams to kilograms | AN27: kg | AV27: =AV26/1000 -> 0.6
AV28: =ROUND(RAND()*(50-2)+20,1) -> 40.7
D29: ="(c) "&AV28&" kilograms to grams" -> (c) 40.7 kilograms to grams | R29: g | Z29: ="(d) "&AV30&" grams to kilograms" -> (d) 13800 grams to kilograms | AN29: kg | AV29: =AV28*1000 -> 40700
AV30: =ROUND(RAND()*(15000-2200)+2200,-2) -> 13800
AV31: =AV30/1000 -> 13.8
